fUSD/lending_fUSD_20250128
["ID","MTS","AMOUNT","RATE_DAILY","PERIOD"]
[350677343,1738056639761,-213.93936738,0.00018699,2]
[350677344,1738056639771,-143.30063332,0.00018699,2]
[350677345,1738056639783,-317.120004,0.00018699,2]
[350677346,1738056639795,-39.57936268,0.00018699,2]
[350677347,1738056639804,-500.0,0.00018699,2]
[350677348,1738056639813,-688.06006932,0.000187,2]
[350677349,1738056639824,-22765.21492295,0.000187,2]
[350677350,1738056639926,-113906.35570423,0.000187,2]
[350677351,1738056639938,-38971.11399769,0.000187,2]
[350677373,1738056642600,-375.03231268,0.00018236,2]
[350677375,1738056642611,-624.96768732,0.00018236,2]
[350677377,1738056642621,-500.0,0.00018699,2]
[350677379,1738056642630,-500.0,0.00018699,2]
[350677381,1738056642640,-6154.94511018,0.000187,2]
[350677384,1738056642657,-926.4808206,0.000187,2]
[350677387,1738056642716,-253196.65812553,0.000187,2]
[350677388,1738056642724,-8571.25746815,0.000187,2]
[350677389,1738056642734,-500.0,0.00018755,2]
[350677390,1738056642744,-19113.68426428,0.00018852,2]
[350677391,1738056642754,-500.0,0.00018855,2]
[350677392,1738056642763,-200.0,0.0001895,2]
[350677393,1738056642772,-500.0,0.00018955,2]
[350677394,1738056642782,-439.99,0.00018966,2]
[350677395,1738056642791,-724.41,0.00018999,2]
[350677396,1738056642800,-500.0,0.00018999,2]
[350677397,1738056642809,-6771.38,0.00018999,2]
[350677398,1738056642818,-500.0,0.00018999,2]
[350677399,1738056642827,-307.78523693,0.00018999,2]
[350677400,1738056642837,-500.0,0.00018999,2]
[350677401,1738056642846,-500.0,0.00018999,2]
[350677402,1738056642855,-500.0,0.00018999,2]
[350677403,1738056642863,-697.93,0.00018999,2]
[350677404,1738056642872,-500.0,0.00018999,2]
[350677405,1738056642882,-908.56,0.00018999,2]
[350677407,1738056642891,-500.0,0.00018999,2]
[350677409,1738056642900,-500.0,0.00018999,2]
[350677411,1738056642908,-500.0,0.00018999,2]
[350677413,1738056642917,-500.0,0.00018999,2]
[350677415,1738056642927,-500.0,0.00018999,2]
[350677417,1738056642937,-216.83394386,0.00018999,2]
[350677419,1738056642946,-2500.0,0.00019,2]
[350677421,1738056642955,-700.0,0.00019,2]
[350677423,1738056642964,-321651.39639694,0.00019,2]
[350677425,1738056642973,-9456.6498,0.00019009,2]
[350677427,1738056642982,-441.7338,0.00019009,2]
[350677429,1738056642992,-500.0,0.00019055,2]
[350677446,1738056643142,-230.8773436,0.00019068,2]
[350677448,1738056643152,-332.3592678,0.00019109,2]
[350677450,1738056643161,-230.8773436,0.00019151,2]
[350677452,1738056643170,-500.0,0.00019155,2]
[350677454,1738056643180,-150.0,0.00019178,2]
[350677456,1738056643189,-27329.1835,0.000192,2]
[350677458,1738056643198,-972.82009495,0.000192,2]
[350677460,1738056643208,-1000.0,0.00019215,2]
[350677463,1738056643217,-500.0,0.00019255,2]
[350677466,1738056643226,-230.8773436,0.0001926,2]
[350677468,1738056643235,-972.82009489,0.00019278,2]
[350677470,1738056643245,-724.41,0.00019298,2]
[350677472,1738056643255,-195.47154911,0.00019298,2]
[350677474,1738056643264,-6771.38,0.00019298,2]
[350677476,1738056643273,-500.0,0.00019298,2]
[350677478,1738056643281,-500.0,0.00019298,2]
[350677480,1738056643291,-500.0,0.00019298,2]
[350677482,1738056643300,-500.0,0.00019298,2]
[350677484,1738056643309,-697.93,0.00019298,2]
[350677486,1738056643318,-500.0,0.00019298,2]
[350677488,1738056643327,-908.56,0.00019298,2]
[350677490,1738056643336,-500.0,0.00019298,2]
[350677492,1738056643345,-500.0,0.00019298,2]
[350677494,1738056643354,-500.0,0.00019298,2]
[350677496,1738056643363,-500.0,0.00019298,2]
[350677498,1738056643372,-500.0,0.00019298,2]
[350677500,1738056643381,-1241.2400007,0.00019298,2]
[350677502,1738056643390,-12472.388,0.00019299,2]
[350677504,1738056643399,-724.41,0.00019299,2]
[350677506,1738056643408,-724.41,0.00019299,2]
[350677508,1738056643417,-724.41,0.00019299,2]
[350677510,1738056643426,-724.41,0.00019299,2]
[350677512,1738056643437,-724.41,0.00019299,2]
[350677513,1738056643447,-724.41,0.00019299,2]
[350677515,1738056643455,-6771.38,0.00019299,2]
[350677517,1738056643464,-6771.38,0.00019299,2]
[350677519,1738056643474,-6771.38,0.00019299,2]
[350677521,1738056643483,-6771.38,0.00019299,2]
[350677522,1738056643492,-6771.38,0.00019299,2]
[350677524,1738056643501,-6771.38,0.00019299,2]
[350677526,1738056643511,-500.0,0.00019299,2]
[350677528,1738056643521,-500.0,0.00019299,2]
[350677529,1738056643530,-500.0,0.00019299,2]
[350677531,1738056643539,-500.0,0.00019299,2]
[350677533,1738056643548,-500.0,0.00019299,2]
[350677535,1738056643556,-500.0,0.00019299,2]
[350677536,1738056643565,-500.0,0.00019299,2]
[350677538,1738056643574,-500.0,0.00019299,2]
[350677540,1738056643583,-500.0,0.00019299,2]
[350677542,1738056643592,-500.0,0.00019299,2]
[350677543,1738056643601,-500.0,0.00019299,2]
[350677545,1738056643610,-500.0,0.00019299,2]
[350677547,1738056643619,-500.0,0.00019299,2]
[350677549,1738056643628,-500.0,0.00019299,2]
[350677551,1738056643637,-500.0,0.00019299,2]
[350677553,1738056643646,-500.0,0.00019299,2]
[350677554,1738056643655,-500.0,0.00019299,2]
[350677556,1738056643664,-500.0,0.00019299,2]
[350677558,1738056643673,-500.0,0.00019299,2]
[350677560,1738056643682,-542.20800845,0.00019299,2]
[350677562,1738056643691,-697.93,0.00019299,2]
[350677563,1738056643701,-500.0,0.00019299,2]
[350677565,1738056643710,-500.0,0.00019299,2]
[350677567,1738056643719,-697.93,0.00019299,2]
[350677569,1738056643728,-697.93,0.00019299,2]
[350677570,1738056643737,-500.0,0.00019299,2]
[350677572,1738056643746,-697.93,0.00019299,2]
[350677574,1738056643755,-500.0,0.00019299,2]
[350677576,1738056643764,-697.93,0.00019299,2]
[350677577,1738056643772,-500.0,0.00019299,2]
[350677579,1738056643782,-697.93,0.00019299,2]
[350677581,1738056643791,-588.95958442,0.00019299,2]
[350677583,1738056643799,-908.56,0.00019299,2]
[350677584,1738056643809,-908.56,0.00019299,2]
[350677586,1738056643818,-500.0,0.00019299,2]
[350677588,1738056643828,-908.56,0.00019299,2]
[350677590,1738056643837,-908.56,0.00019299,2]
[350677592,1738056643846,-500.0,0.00019299,2]
[350677594,1738056643856,-500.0,0.00019299,2]
[350677595,1738056643865,-500.0,0.00019299,2]
[350677597,1738056643874,-908.56,0.00019299,2]
[350677599,1738056643883,-500.0,0.00019299,2]
[350677601,1738056643892,-500.0,0.00019299,2]
[350677603,1738056643904,-908.56,0.00019299,2]
[350677605,1738056643913,-500.0,0.00019299,2]
[350677606,1738056643922,-500.0,0.00019299,2]
[350677608,1738056643931,-500.0,0.00019299,2]
[350677610,1738056643940,-500.0,0.00019299,2]
[350677612,1738056643949,-500.0,0.00019299,2]
[350677614,1738056643959,-500.0,0.00019299,2]
[350677616,1738056643968,-500.0,0.00019299,2]
[350677617,1738056643977,-417.07697812,0.00019299,2]
[350677619,1738056643986,-500.0,0.00019299,2]
[350677621,1738056643995,-500.0,0.00019299,2]
[350677623,1738056644005,-500.0,0.00019299,2]
[350677625,1738056644014,-500.0,0.00019299,2]
[350677627,1738056644022,-500.0,0.00019299,2]
[350677629,1738056644032,-500.0,0.00019299,2]
[350677630,1738056644041,-500.0,0.00019299,2]
[350677632,1738056644050,-219676.73824217,0.000193,2]
[350677634,1738056644060,-5000.0,0.000193,2]
[350677636,1738056644069,-895979.16537181,0.000193,2]
[350677639,1738056644086,-1803.8,0.000193,2]
[350677641,1738056644097,-221196.45621682,0.000193,2]
[350677787,1738056645577,-500.0,0.00018699,2]
[350677790,1738056645587,-207.33945,0.00019299,2]
[350677792,1738056645596,-171792.66057271,0.000193,2]
[350677802,1738056645687,-493.4949996,0.00018699,2]
[350677842,1738056646055,-6.5050004,0.00018699,2]
[350677843,1738056646065,-371.67870072,0.00018999,2]
[350677846,1738056646076,-128.32129928,0.00018999,2]
[350677848,1738056646086,-304.3428001,0.000193,2]
[350678080,1738057037847,152.72,0.00010137,2]
[350678100,1738057832084,-441.54,0.00015821,2]
[350678101,1738057832093,-150.0,0.0001641,2]
[350678102,1738057832103,-150.0,0.00016984,2]
[350678103,1738057832112,-160.0,0.00017,2]
[350678104,1738057832121,-150.0,0.00017403,2]
[350678105,1738057832130,-905.01,0.00017411,2]
[350678106,1738057832140,-152.72,0.00017599,2]
[350678107,1738057832149,-300.0,0.00017781,2]
[350678108,1738057832159,-7973.66773053,0.00017782,2]
[350678109,1738057832170,-307.68,0.00017782,2]
[350678116,1738057840217,-864.37736027,0.00017782,2]
[350678138,1738057845836,-3580.2749092,0.00017782,2]
[350678139,1738057845847,-1000.0,0.00017974,2]
[350678140,1738057845857,-163.3,0.00018074,30]
[350678141,1738057845866,-441.54,0.00018085,2]
[350678142,1738057845875,-305.99,0.00018102,2]
[350678143,1738057845886,-150.0,0.0001811,2]
[350678144,1738057845895,-406.2,0.0001815,2]
[350678145,1738057845905,-905.01,0.00018282,2]
[350678146,1738057845915,-588.19,0.00018358,2]
[350678147,1738057845926,-303.74,0.00018578,2]
[350678148,1738057845935,-150.0,0.00018578,2]
[350678149,1738057845945,-875.71,0.00018578,2]
[350678150,1738057845954,-150.0,0.00018578,2]
[350678151,1738057845963,-152.74738017,0.00018598,2]
[350678152,1738057845972,-4070.0371,0.00018599,2]
[350678153,1738057845982,-473.0328,0.00018599,2]
[350678154,1738057845991,-715.861,0.00018599,2]
[350678155,1738057846001,-154.14303639,0.00018599,2]
[350678156,1738057846010,-1971.39,0.00018688,2]
[350678157,1738057846019,-500.0,0.00018698,2]
[350678158,1738057846028,-500.0,0.00018698,2]
[350678159,1738057846038,-500.96834673,0.00018698,2]
[350678160,1738057846048,-501.74947358,0.00018698,2]
[350678161,1738057846057,-501.89629387,0.00018698,2]
[350678162,1738057846067,-1296.02,0.00018698,2]
[350678163,1738057846082,-500.0,0.00018698,2]
[350678164,1738057846095,-500.0,0.00018698,2]
[350678165,1738057846104,-1027.4,0.00018698,2]
[350678166,1738057846114,-503.4801109,0.00018698,2]
[350678167,1738057846124,-577.19,0.00018698,2]
[350678168,1738057846133,-500.0,0.00018698,2]
[350678169,1738057846143,-943.38,0.00018698,2]
[350678170,1738057846154,-508.68745369,0.00018698,2]
[350678171,1738057846165,-500.0,0.00018698,2]
[350678172,1738057846177,-1431.42,0.00018698,2]
[350678173,1738057846188,-500.0,0.00018698,2]
[350678174,1738057846198,-1074.74,0.00018698,2]
[350678175,1738057846208,-500.0,0.00018698,2]
[350678176,1738057846218,-500.0,0.00018698,2]
[350678177,1738057846227,-1451.28,0.00018698,2]
[350678178,1738057846236,-500.0,0.00018698,2]
[350678179,1738057846245,-500.0,0.00018698,2]
[350678180,1738057846255,-546.33,0.00018698,2]
[350678181,1738057846265,-500.0,0.00018698,2]
[350678182,1738057846274,-702.73,0.00018698,2]
[350678183,1738057846283,-500.0,0.00018698,2]
[350678184,1738057846293,-500.0,0.00018698,2]
[350678185,1738057846302,-832.28,0.00018698,2]
[350678186,1738057846312,-500.0,0.00018698,2]
[350678187,1738057846321,-629.15,0.00018698,2]
[350678188,1738057846330,-571.86,0.00018698,2]
[350678189,1738057846340,-359.97665534,0.00018698,2]
[350678190,1738057846349,-576.92613809,0.00018698,2]
[350678191,1738057846358,-573.45,0.00018698,2]
[350678192,1738057846367,-693.46,0.00018698,2]
[350678193,1738057846376,-500.0,0.00018698,2]
[350678194,1738057846385,-640.9,0.00018698,2]
[350678195,1738057846395,-557.59,0.00018698,2]
[350678196,1738057846404,-498.69132494,0.00018698,2]
[350678197,1738057846414,-521.38,0.00018698,2]
[350678198,1738057846423,-501.97726321,0.00018698,2]
[350678199,1738057846432,-880.0,0.00018698,2]
[350678200,1738057846441,-500.0,0.00018698,2]
[350678201,1738057846450,-500.0,0.00018698,2]
[350678202,1738057846459,-755.99,0.00018698,2]
[350678203,1738057846468,-500.0,0.00018698,2]
[350678204,1738057846477,-500.0,0.00018698,2]
[350678205,1738057846486,-500.0,0.00018698,2]
[350678206,1738057846496,-500.0,0.00018698,2]
[350678207,1738057846505,-500.0,0.00018698,2]
[350678208,1738057846514,-547.54,0.00018698,2]
[350678209,1738057846524,-500.0,0.00018698,2]
[350678210,1738057846533,-500.0,0.00018698,2]
[350678211,1738057846543,-500.0,0.00018698,2]
[350678212,1738057846552,-388.44896427,0.00018698,2]
[350678213,1738057846562,-500.0,0.00018698,2]
[350678214,1738057846571,-500.0,0.00018698,2]
[350678215,1738057846580,-500.0,0.00018698,2]
[350678216,1738057846589,-546.0,0.00018698,2]
[350678217,1738057846598,-500.0,0.00018698,2]
[350678218,1738057846607,-500.0,0.00018698,2]
[350678219,1738057846616,-500.0,0.00018698,2]
[350678220,1738057846625,-519.06798736,0.00018698,2]
[350678221,1738057846635,-500.0,0.00018698,2]
[350678222,1738057846648,-564.92,0.00018698,2]
[350678223,1738057846658,-500.0,0.00018698,2]
[350678224,1738057846667,-784.95,0.00018698,2]
[350678225,1738057846676,-500.0,0.00018698,2]
[350678226,1738057846685,-697.54,0.00018698,2]
[350678227,1738057846694,-500.0,0.00018698,2]
[350678228,1738057846703,-500.0,0.00018698,2]
[350678229,1738057846712,-500.0,0.00018698,2]
[350678230,1738057846721,-500.0,0.00018698,2]
[350678231,1738057846730,-500.0,0.00018698,2]
[350678232,1738057846739,-500.0,0.00018698,2]
[350678233,1738057846749,-500.0,0.00018698,2]
[350678234,1738057846758,-500.0,0.00018698,2]
[350678235,1738057846767,-500.0,0.00018698,2]
[350678236,1738057846776,-610.25476341,0.00018698,2]
[350678237,1738057846785,-559.6,0.00018698,2]
[350678238,1738057846794,-500.0,0.00018698,2]
[350678239,1738057846804,-500.0,0.00018698,2]
[350678240,1738057846813,-500.0,0.00018698,2]
[350678241,1738057846822,-500.0,0.00018698,2]
[350678242,1738057846831,-500.0,0.00018698,2]
[350678243,1738057846842,-512.55098827,0.00018698,2]
[350678244,1738057846851,-500.0,0.00018698,2]
[350678245,1738057846860,-506.13163904,0.00018698,2]
[350678246,1738057846869,-1178.78,0.00018698,2]
[350678247,1738057846878,-177.08308556,0.00018698,2]
[350678248,1738057846888,-863.8,0.00018698,2]
[350678249,1738057846897,-500.0,0.00018698,2]
[350678250,1738057846906,-500.0,0.00018698,2]
[350678251,1738057846915,-500.0,0.00018698,2]
[350678252,1738057846925,-500.0,0.00018698,2]
[350678253,1738057846934,-500.0,0.00018698,2]
[350678254,1738057846943,-500.0,0.00018698,2]
[350678255,1738057846951,-500.0,0.00018698,2]
[350678256,1738057846961,-500.0,0.00018698,2]
[350678257,1738057846971,-500.0,0.00018698,2]
[350678258,1738057846980,-500.0,0.00018698,2]
[350678259,1738057846989,-627.38,0.00018698,2]
[350678260,1738057846999,-503.86636819,0.00018698,2]
[350678261,1738057847008,-500.0,0.00018698,2]
[350678262,1738057847017,-500.0,0.00018698,2]
[350678263,1738057847026,-500.0,0.00018698,2]
[350678264,1738057847035,-500.0,0.00018698,2]
[350678265,1738057847045,-500.0,0.00018698,2]
[350678266,1738057847178,-500.0,0.00018698,2]
[350678267,1738057847191,-500.0,0.00018698,2]
[350678268,1738057847200,-500.0,0.00018698,2]
[350678269,1738057847210,-1946.58,0.00018698,2]
[350678270,1738057847219,-500.0,0.00018698,2]
[350678271,1738057847229,-500.0,0.00018698,2]
[350678272,1738057847238,-500.0,0.00018698,2]
[350678273,1738057847248,-500.0,0.00018698,2]
[350678274,1738057847257,-3280.53,0.00018698,2]
[350678275,1738057847266,-500.0,0.00018698,2]
[350678276,1738057847275,-1576.79,0.00018698,2]
[350678277,1738057847284,-500.0,0.00018698,2]
[350678278,1738057847293,-713.98,0.00018698,2]
[350678279,1738057847303,-500.0,0.00018698,2]
[350678280,1738057847312,-500.0,0.00018698,2]
[350678281,1738057847321,-1634.16,0.00018698,2]
[350678282,1738057847330,-500.0,0.00018698,2]
[350678283,1738057847339,-500.0,0.00018698,2]
[350678284,1738057847349,-3084.87,0.00018698,2]
[350678285,1738057847359,-527.32,0.00018698,2]
[350678286,1738057847368,-564.75,0.00018698,2]
[350678287,1738057847378,-500.0,0.00018698,2]
[350678288,1738057847388,-2286.06,0.00018698,2]
[350678289,1738057847399,-500.0,0.00018698,2]
[350678290,1738057847411,-500.0,0.00018698,2]
[350678291,1738057847424,-500.0,0.00018698,2]
[350678292,1738057847433,-500.0,0.00018698,2]
[350678293,1738057847442,-562.7,0.00018698,2]
[350678294,1738057847452,-1838.79,0.00018698,2]
[350678295,1738057847461,-500.0,0.00018698,2]
[350678296,1738057847470,-500.0,0.00018698,2]
[350678297,1738057847479,-500.0,0.00018698,2]
[350678298,1738057847487,-690.23,0.00018698,2]
[350678299,1738057847497,-2759.51,0.00018698,2]
[350678300,1738057847506,-500.0,0.00018698,2]
[350678301,1738057847515,-500.0,0.00018698,2]
[350678302,1738057847525,-500.0,0.00018698,2]
[350678303,1738057847534,-500.0,0.00018698,2]
[350678304,1738057847543,-1065.84,0.00018698,2]
[350678305,1738057847555,-500.0,0.00018698,2]
[350678306,1738057847564,-500.0,0.00018698,2]
[350678307,1738057847574,-1885.87,0.00018698,2]
[350678308,1738057847583,-2176.86,0.00018698,2]
[350678309,1738057847592,-500.0,0.00018698,2]
[350678310,1738057847602,-3061.16,0.00018698,2]
[350678311,1738057847612,-1146.26,0.00018698,2]
[350678312,1738057847628,-500.0,0.00018698,2]
[350678313,1738057847637,-500.0,0.00018698,2]
[350678314,1738057847647,-265.65404094,0.00018698,2]
[350678315,1738057847658,-2168.38,0.00018698,2]
[350678316,1738057847667,-500.0,0.00018698,2]
[350678317,1738057847676,-3894.9,0.00018698,2]
[350678318,1738057847685,-887.98,0.00018698,2]
[350678319,1738057847696,-500.0,0.00018698,2]
[350678320,1738057847705,-511.42760705,0.00018698,2]
[350678321,1738057847715,-500.0,0.00018698,2]
[350678322,1738057847724,-3025.58,0.00018698,2]
[350678323,1738057847733,-500.0,0.00018698,2]
[350678324,1738057847742,-1579.71,0.00018698,2]
[350678325,1738057847752,-500.0,0.00018698,2]
[350678326,1738057847762,-500.0,0.00018698,2]
[350678327,1738057847771,-643.72,0.00018698,2]
[350678328,1738057847780,-500.0,0.00018698,2]
[350678329,1738057847789,-156.86327667,0.00018698,2]
[350678330,1738057847799,-500.0,0.00018698,2]
[350678331,1738057847815,-500.0,0.00018698,2]
[350678332,1738057847835,-900.44,0.00018698,2]
[350678333,1738057847849,-500.0,0.00018698,2]
[350678334,1738057847858,-500.0,0.00018698,2]
[350678335,1738057847868,-500.0,0.00018698,2]
[350678336,1738057847876,-500.0,0.00018698,2]
[350678337,1738057847887,-503.59009062,0.00018698,2]
[350678338,1738057847896,-500.0,0.00018698,2]
[350678339,1738057847905,-485.27001081,0.00018698,2]
[350678340,1738057847914,-500.0,0.00018698,2]
[350678341,1738057847924,-500.0,0.00018698,2]
[350678342,1738057847933,-500.0,0.00018698,2]
[350678343,1738057847942,-500.0,0.00018698,2]
[350678344,1738057847951,-500.0,0.00018698,2]
[350678345,1738057847960,-500.0,0.00018698,2]
[350678346,1738057847969,-500.0,0.00018698,2]
[350678347,1738057847978,-500.0,0.00018698,2]
[350678348,1738057847987,-500.0,0.00018698,2]
[350678349,1738057847996,-500.0,0.00018698,2]
[350678350,1738057848005,-500.0,0.00018698,2]
[350678351,1738057848016,-500.0,0.00018698,2]
[350678352,1738057848025,-500.0,0.00018698,2]
[350678353,1738057848034,-500.0,0.00018698,2]
[350678354,1738057848043,-506.26107425,0.00018698,2]
[350678355,1738057848052,-500.0,0.00018698,2]
[350678356,1738057848061,-504.93525817,0.00018698,2]
[350678357,1738057848070,-500.0,0.00018698,2]
[350678358,1738057848080,-500.0,0.00018698,2]
[350678359,1738057848089,-446.8566299,0.00018698,2]
[350678360,1738057848098,-500.0,0.00018698,2]
[350678361,1738057848107,-438.95729888,0.00018698,2]
[350678362,1738057848117,-500.0,0.00018698,2]
[350678363,1738057848126,-500.0,0.00018698,2]
[350678364,1738057848135,-500.0,0.00018698,2]
[350678365,1738057848144,-500.0,0.00018698,2]
[350678366,1738057848153,-500.0,0.00018698,2]
[350678367,1738057848163,-460.14443992,0.00018698,2]
[350678368,1738057848172,-500.0,0.00018698,2]
[350678369,1738057848181,-500.0,0.00018698,2]
[350678370,1738057848191,-500.0,0.00018698,2]
[350678371,1738057848200,-710.69,0.00018698,2]
[350678372,1738057848209,-500.0,0.00018698,2]
[350678373,1738057848219,-573.45,0.00018698,2]
[350678374,1738057848228,-1464.88,0.00018698,2]
[350678375,1738057848237,-500.0,0.00018698,2]
[350678376,1738057848248,-500.0,0.00018698,2]
[350678377,1738057848258,-500.0,0.00018698,2]
[350678378,1738057848268,-563.69,0.00018698,2]
[350678379,1738057848278,-500.0,0.00018698,2]
[350678380,1738057848287,-801.33,0.00018698,2]
[350678381,1738057848297,-500.0,0.00018698,2]
[350678382,1738057848306,-389.50839545,0.00018698,2]
[350678383,1738057848316,-500.0,0.00018698,2]
[350678384,1738057848325,-500.0,0.00018698,2]
[350678385,1738057848334,-500.0,0.00018698,2]
[350678386,1738057848343,-500.0,0.00018698,2]
[350678387,1738057848352,-500.0,0.00018698,2]
[350678388,1738057848362,-532.89,0.00018698,2]
[350678389,1738057848371,-500.0,0.00018698,2]
[350678390,1738057848380,-500.0,0.00018698,2]
[350678391,1738057848389,-500.0,0.00018698,2]
[350678392,1738057848398,-500.0,0.00018698,2]
[350678393,1738057848407,-500.0,0.00018698,2]
[350678394,1738057848416,-500.0,0.00018698,2]
[350678395,1738057848425,-3949.97,0.00018698,2]
[350678396,1738057848435,-384.94257543,0.00018698,2]
[350678397,1738057848443,-2368.16,0.00018698,2]
[350678398,1738057848453,-500.0,0.00018698,2]
[350678399,1738057848462,-500.0,0.00018698,2]
[350678400,1738057848471,-500.0,0.00018698,2]
[350678401,1738057848480,-500.0,0.00018698,2]
[350678402,1738057848490,-500.0,0.00018698,2]
[350678403,1738057848499,-530.0,0.00018698,2]
[350678404,1738057848508,-500.0,0.00018698,2]
[350678405,1738057848517,-599.08,0.00018698,2]
[350678406,1738057848527,-507.05965122,0.00018698,2]
[350678407,1738057848536,-93702.59501314,0.00018698,2]
[350678408,1738057848546,-500.0,0.00018699,2]
[350678409,1738057848555,-500.0,0.00018699,2]
[350678410,1738057848565,-531.79724713,0.00018699,2]
[350678411,1738057848574,-500.0,0.00018699,2]
[350678412,1738057848583,-500.0,0.00018699,2]
[350678413,1738057848593,-500.0,0.00018699,2]
[350678414,1738057848602,-500.0,0.00018699,2]
[350678415,1738057848611,-500.0,0.00018699,2]
[350678416,1738057848620,-500.0,0.00018699,2]
[350678417,1738057848629,-500.0,0.00018699,2]
[350678418,1738057848638,-486.89640934,0.00018699,2]
[350678419,1738057848647,-500.0,0.00018699,2]
[350678420,1738057848656,-500.0,0.00018699,2]
[350678421,1738057848666,-500.0,0.00018699,2]
[350678422,1738057848675,-500.0,0.00018699,2]
[350678423,1738057848684,-500.0,0.00018699,2]
[350678424,1738057848693,-500.0,0.00018699,2]
[350678425,1738057848702,-500.0,0.00018699,2]
[350678426,1738057848710,-284.52630741,0.00018699,2]
[350678427,1738057848719,-500.0,0.00018699,2]
[350678428,1738057848728,-500.0,0.00018699,2]
[350678429,1738057848738,-500.0,0.00018699,2]
[350678430,1738057848748,-500.0,0.00018699,2]
[350678431,1738057848757,-500.0,0.00018699,2]
[350678432,1738057848767,-500.0,0.00018699,2]
[350678433,1738057848776,-500.0,0.00018699,2]
[350678434,1738057848785,-500.0,0.00018699,2]
[350678435,1738057848794,-500.0,0.00018699,2]
[350678436,1738057848804,-500.0,0.00018699,2]
[350678437,1738057848813,-500.0,0.00018699,2]
[350678438,1738057848822,-500.0,0.00018699,2]
[350678439,1738057848831,-189.51681416,0.00018699,2]
[350678440,1738057848842,-524.74017595,0.00018699,2]
[350678441,1738057848853,-164.98991256,0.00018699,2]
[350678442,1738057848862,-500.0,0.00018699,2]
[350678443,1738057848871,-229.16861438,0.00018699,2]
[350678444,1738057848880,-500.0,0.00018699,2]
[350678445,1738057848890,-500.0,0.00018699,2]
[350678446,1738057848899,-516.19957285,0.00018699,2]
[350678447,1738057848908,-500.0,0.00018699,2]
[350678448,1738057848918,-500.0,0.00018699,2]
[350678449,1738057848927,-500.0,0.00018699,2]
[350678450,1738057848936,-500.0,0.00018699,2]
[350678451,1738057848945,-500.0,0.00018699,2]
[350678452,1738057848955,-500.0,0.00018699,2]
[350678453,1738057848964,-515.83160841,0.00018699,2]
[350678454,1738057848973,-627.68,0.00018699,2]
[350678455,1738057848982,-627.68,0.00018699,2]
[350678456,1738057848992,-500.0,0.00018699,2]
[350678457,1738057849002,-500.0,0.00018699,2]
[350678458,1738057849012,-483.35357663,0.00018699,2]
[350678459,1738057849021,-500.0,0.00018699,2]
[350678460,1738057849031,-500.0,0.00018699,2]
[350678461,1738057849040,-500.0,0.00018699,2]
[350678462,1738057849049,-645.16193314,0.00018699,2]
[350678463,1738057849059,-500.0,0.00018699,2]
[350678464,1738057849068,-500.0,0.00018699,2]
[350678465,1738057849077,-500.0,0.00018699,2]
[350678466,1738057849087,-500.0,0.00018699,2]
[350678467,1738057849096,-513.55910844,0.00018699,2]